Workbook

Sheet CSV
A1: Stations | B1: 7 | C1: Chines | D1: 4
A2: Station | B2: Chine | C2: X | D2: Y | E2: Z | F2: Break | G2: Colour
A3: 1 | B3: 1 | C3: 20 | D3: 0.2362305418 | E3: 146.9465575 | F3: TRUE | G3: 1
A4: 1 | B4: 2 | C4: 20 | D4: 0.2362305418 | E4: 146.9465575 | F4: TRUE | G4: 2
A5: 1 | B5: 3 | C5: 20 | D5: 0.2362305418 | E5: 146.9465575 | F5: TRUE | G5: 3
A6: 1 | B6: 4 | C6: 20 | D6: 0.2362305418 | E6: 146.9465575 | F6: TRUE | G6: 4
A7: 2 | B7: 1 | C7: 135 | D7: 0.2362305418 | E7: 0 | F7: TRUE | G7: 1
A8: 2 | B8: 2 | C8: 135 | D8: 0.2362305418 | E8: 0 | F8: TRUE | G8: 2
A9: 3 | B9: 1 | C9: 604 | D9: 0.2362305418 | E9: -48.36215816 | F9: FALSE | G9: 1
A10: 3 | B10: 2 | C10: 604 | D10: 132.0658934 | E10: -24.18107908 | F10: FALSE | G10: 2
A11: 3 | B11: 3 | C11: 604 | D11: 157.177014 | E11: 106.0247314 | F11: FALSE | G11: 3
A12: 3 | B12: 4 | C12: 604 | D12: 0 | E12: 144.156433 | F12: FALSE | G12: 4
A13: 4 | B13: 1 | C13: 1200 | D13: 0 | E13: -69.75311273 | F13: FALSE | G13: 1
A14: 4 | B14: 2 | C14: 1200 | D14: 184.1482176 | E14: -45.57203365 | F14: FALSE | G14: 2
A15: 4 | B15: 3 | C15: 1200 | D15: 208.3292967 | E15: 92.07410881 | F15: FALSE | G15: 3
A16: 4 | B16: 4 | C16: 1200 | D16: 0 | E16: 142.29635 | F16: FALSE | G16: 4
A17: 5 | B17: 1 | C17: 1777 | D17: 0 | E17: -51.15228267 | F17: FALSE | G17: 1
A18: 5 | B18: 2 | C18: 1777 | D18: 132.0658934 | E18: -26.97120359 | F18: FALSE | G18: 2
A19: 5 | B19: 3 | C19: 1777 | D19: 157.177014 | E19: 92.07410881 | F19: FALSE | G19: 3
A20: 5 | B20: 4 | C20: 1777 | D20: 0 | E20: 112.5350219 | F20: FALSE | G20: 4
A21: 6 | B21: 1 | C21: 2332 | D21: 0 | E21: 0 | F21: TRUE | G21: 1
A22: 6 | B22: 2 | C22: 2332 | D22: 0 | E22: 0 | F22: TRUE | G22: 2
A23: 7 | B23: 1 | C23: 2364 | D23: 0 | E23: 92.07410881 | F23: TRUE | G23: 0
A24: 7 | B24: 2 | C24: 2364 | D24: 0 | E24: 92.07410881 | F24: TRUE | G24: 0
A25: 7 | B25: 3 | C25: 2364 | D25: 0 | E25: 92.07410881 | F25: TRUE | G25: 0
A26: 7 | B26: 4 | C26: 2364 | D26: 0 | E26: 92.07410881 | F26: TRUE | G26: 0

Sheet Pontoon
A1: Pontoon
A2: Find Offet Table at row | B2: 17 | M2: Pontoon Basic Design Statistics
A3: Stations | B3: 7 | M3: Length Overall (LOA) | Q3: =(AF17-B17)/1000 -> 2.344 | R3: m
A4: Chines | B4: 4 | M4: Beam Overall (BOA) | Q4: =R18/500 -> 0.4166585934 | R4: m
M5: Length Water Line (LWL) | Q5: =(AA19-G19)/1000 -> 2.197 | R5: m
M6: Beam Water Line (BWL) | Q6: =M19/500 -> 0.2641317869 | R6: m | S6: Actually the bottom width
M7: Depth Water Line (DWL) | Q7: =-S20/1000 -> 0.06975311273 | R7: m
M8: Rocker | Q8: =(I20-S20)/1000 -> 0.06975311273 | R8: m
M9: Amidships Deadrise | Q9: =DEGREES(ATAN2(R19-R20,S19-S20)) -> 7.48088618 | R9: Degrees
M10: Amidships Freeboard | Q10: =S17/1000 -> 0.14229635 | R10: m
A11: This design is based on work by: | M11: Forward Freeboard | Q11: =I17/1000 -> 0 | R11: m
A12: Bruce C. Anderson | M12: Rear Freeboard | Q12: =X17/1000 -> 0.1125350219 | R12: m
A13: http://buckwheat-anderson.com/bcanderson/Boatz/OSKayak/OSKbuild.html
A15: Station | B15: 1 | G15: 2 | L15: 3 | Q15: 4 | V15: 5 | AA15: 6 | AF15: 7
A16: Chine | B16: X | C16: Y | D16: Z | E16: Break | F16: Colour | G16: X | H16: Y | I16: Z | J16: Break | K16: Colour | L16: X | M16: Y | N16: Z | O16: Break | P16: Colour | Q16: X | R16: Y | S16: Z | T16: Break | U16: Colour | V16: X | W16: Y | X16: Z | Y16: Break | Z16: Colour | AA16: X | AB16: Y | AC16: Z | AD16: Break | AE16: Colour | AF16: X | AG16: Y | AH16: Z | AI16: Break | AJ16: Colour
A17: Deck | B17: 20 | C17: 0.2362305418 | D17: 146.9465575 | E17: TRUE | F17: 3.791469194 | L17: 604 | M17: 0 | N17: 144.156433 | O17: FALSE | P17: 3.791469194 | Q17: 1200 | R17: 0 | S17: 142.29635 | T17: FALSE | U17: 3.791469194 | V17: 1777 | W17: 0 | X17: 112.5350219 | Y17: FALSE | Z17: 3.791469194 | AF17: 2364 | AG17: 0 | AH17: 92.07410881 | AI17: TRUE | AJ17: 0
A18: Sheer | B18: 20 | C18: 0.2362305418 | D18: 146.9465575 | E18: TRUE | F18: 2.843601896 | L18: 604 | M18: 157.177014 | N18: 106.0247314 | O18: FALSE | P18: 2.843601896 | Q18: 1200 | R18: 208.3292967 | S18: 92.07410881 | T18: FALSE | U18: 2.843601896 | V18: 1777 | W18: 157.177014 | X18: 92.07410881 | Y18: FALSE | Z18: 2.843601896 | AF18: 2364 | AG18: 0 | AH18: 92.07410881 | AI18: TRUE | AJ18: 0
A19: Chine | B19: 20 | C19: 0.2362305418 | D19: 146.9465575 | E19: TRUE | F19: 1.895734597 | G19: 135 | H19: 0.2362305418 | I19: 0 | J19: TRUE | K19: 1.895734597 | L19: 604 | M19: 132.0658934 | N19: -24.18107908 | O19: FALSE | P19: 1.895734597 | Q19: 1200 | R19: 184.1482176 | S19: -45.57203365 | T19: FALSE | U19: 1.895734597 | V19: 1777 | W19: 132.0658934 | X19: -26.97120359 | Y19: FALSE | Z19: 1.895734597 | AA19: 2332 | AB19: 0 | AC19: 0 | AD19: TRUE | AE19: 1.895734597 | AF19: 2364 | AG19: 0 | AH19: 92.07410881 | AI19: TRUE | AJ19: 0
A20: Centreline | B20: 20 | C20: 0.2362305418 | D20: 146.9465575 | E20: TRUE | F20: 0.9478672986 | G20: 135 | H20: 0.2362305418 | I20: 0 | J20: TRUE | K20: 0.9478672986 | L20: 604 | M20: 0.2362305418 | N20: -48.36215816 | O20: FALSE | P20: 0.9478672986 | Q20: 1200 | R20: 0 | S20: -69.75311273 | T20: FALSE | U20: 0.9478672986 | V20: 1777 | W20: 0 | X20: -51.15228267 | Y20: FALSE | Z20: 0.9478672986 | AA20: 2332 | AB20: 0 | AC20: 0 | AD20: TRUE | AE20: 0.9478672986 | AF20: 2364 | AG20: 0 | AH20: 92.07410881 | AI20: TRUE | AJ20: 0

Sheet Pontoon Basic Calcs
B2: Pontoon Basic Metrics
B3: Length Overall (LOA) | C3: =Pontoon!Q3 -> 2.344 | D3: m
B4: Beam Overall (BOA) | C4: =Pontoon!Q4 -> 0.4166585934 | D4: m
B5: Length Water Line (LWL) | C5: =Pontoon!Q5 -> 2.197 | D5: m
B6: Beam Water Line (BWL) | C6: =Pontoon!Q6 -> 0.2641317869 | D6: m | E6: Actually the bottom width
B7: Depth Water Line (DWL) | C7: =Pontoon!Q7 -> 0.06975311273 | D7: m
B8: Rocker | C8: =Pontoon!Q8 -> 0.06975311273 | D8: m
B9: Amidships Deadrise | C9: =Pontoon!Q9 -> 7.48088618 | D9: Degrees
B10: Amidships Freeboard | C10: =Pontoon!Q10 -> 0.14229635 | D10: m
B11: Forward Freeboard | C11: =Pontoon!Q11 -> 0 | D11: m
B12: Rear Freeboard | C12: =Pontoon!Q12 -> 0.1125350219 | D12: m
B14: Basic Calculations (approximate)
B15: Mid-Section Area | C15: =C6*C7 -> 0.01842401431 | D15: m^2
B16: Plan Water Line Area | C16: =C6*C5*2/3 -> 0.3868650239 | D16: m^2
B17: Displacement Volume | C17: =C5*C6*(C7-C8/3)*2/3 -> 0.01799002641 | D17: m^3
B18: Displacement Weight | C18: =C17*1025 -> 18.43977707 | D18: kg
B19: Prismatic Coefficient (cp) | C19: =C17/(C5*C6*C7) -> 0.4444444444
B20: Displacement Length Ratio (DLR) | C20: =C18/(C3/3.048)^3 -> 40.54410635
B21: Hull Speed | C21: =1.34*(C5*3.28)^0.5 -> 3.597135096 | D21: kt
B22: Design G Force | C22: 3.5 | D22: g
B23: Design Pressure | C23: =C22*C18*9.81/1000/C16 -> 1.636564969 | D23: kPa
B25: Bottom Plank Design
B26: Design Pressure (P) | C26: =C23 -> 1.636564969 | D26: kPa
B27: Span (L) | C27: =C6*1000 -> 264.1317869 | D27: mm | E27: BWL
B28: Allowable Stress (S) | C28: 14000 | D28: kPa | E28: F14 Plywood
B29: Plank Thickness (t) | C29: =(C26*C27*C27/C28/2)^0.5 -> 2.019334565 | D29: mm | E29: t^2=P*L^2/2/S, ~fixed sides
B30: Design Plank Thickness (t) | C30: 6 | D30: mm
B31: Modulus of Elasticity (E) | C31: =10500000 -> 10500000 | D31: kPa
B32: Moment of Inertia (I) | C32: =1000*C30^3/12 -> 18000 | D32: mm^4
B33: Deflection (d) | C33: =C26*C27^4/384/C31/C32*1000 -> 0.1097546426 | D33: mm | E33: d=P*L^4/384EI (2% max)
B34: Deflection Ratio | C34: =C27/C33 -> 2406.56596
B35: Maximum Concentrated Load | C35: =C28*C30*C30/1000000 -> 0.504 | D35: kN | E35: =S*t*t
